[Event "7th Capablanca Memorial GM 2019"]
[Site "Anogia"]
[Date "2019.09.17"]
[Round "7.2"]
[White "Manish Anto Cristiano F"]
[Black "Ioannidis, Evgenios"]
[Result "1/2-1/2"]
[ECO "B19"]
[WhiteElo "2364"]
[BlackElo "2390"]
[Annotator "ChessBase"]
[PlyCount "152"]
[EventDate "2019.09.11"]
[EventType "tourn"]
[EventCountry "GRE"]
[SourceTitle "playchess.com"]
[Source "ChessBase"]
[SourceQuality "1"]
[TimeControl "40/5400+30:1800+30"]

1. e4 {[%emt 0:00:00]} c6 {[%emt 0:01:10]} 2. d4 {[%emt 0:00:04]} d5 {[%emt 0:00:13]} 3. Nc3 {[%emt 0:00:31]} dxe4 {[%emt 0:00:25]} 4. Nxe4 {[%emt 0:00:32]} Bf5 {[%emt 0:00:14]} 5. Ng3 {[%emt 0:00:27]} Bg6 {[%emt 0:00:11]} 6. h4 {[%emt 0:00:32]} h6 {[%emt 0:00:17]} 7. Nf3 {[%emt 0:00:30]} Nd7 {[%emt 0:00:26]} 8. h5 {[%emt 0:00:31]} Bh7 {[%emt 0:00:06]} 9. Bd3 {[%emt 0:00:33]} Bxd3 {[%emt 0:00:10]} 10. Qxd3 {[%emt 0:00:28]} e6 {[%emt 0:00:22]} 11. Bd2 {[%emt 0:00:32]} Bd6 {[%emt 0:01:17]} 12. Ne4 {[%emt 0:02:32]} Bc7 {[%emt 0:00:56]} 13. O-O-O {[%emt 0:08:16]} Ngf6 {[%emt 0:00:42]} 14. Kb1 {[%emt 0:01:09]} Nxe4 {[%emt 0:00:59]} 15. Qxe4 {[%emt 0:00:20]} Nf6 {[%emt 0:00:14]} 16. Qd3 {[%emt 0:04:05]} Qd5 {[%emt 0:00:35]} 17. c4 {[%emt 0:01:08]} Qe4 {[%emt 0:00:06]} 18. Qxe4 {[%emt 0:00:38]} Nxe4 {[%emt 0:00:08]} 19. Be3 {[%emt 0:02:27]} O-O {[%emt 0:01:23]} 20. Ne5 {[%emt 0:03:28]} Rfd8 {[%emt 0:01:33]} 21. g4 {[%emt 0:07:25]} f5 {[%emt 0:02:06]} 22. Rhg1 {[%emt 0:08:30]} f4 {[%emt 0:05:09]} 23. Bxf4 {[%emt 0:01:23]} Nxf2 {[%emt 0:00:08]} 24. Rdf1 {[%emt 0:18:41]} Nh3 {[%emt 0:08:20]} 25. Rh1 {[%emt 0:00:45]} Nxf4 {[%emt 0:00:06]} 26. Rxf4 {[%emt 0:00:18]} c5 {[%emt 0:21:38]} 27. Re1 {[%emt 0:03:26]} cxd4 {[%emt 0:03:52]} 28. Rf3 {[%emt 0:03:20]} Bxe5 {[%emt 0:07:51]} 29. Rxe5 {[%emt 0:00:25]} d3 {[%emt 0:00:05]} 30. Kc1 {[%emt 0:05:00]} Rd4 {[%emt 0:01:30]} 31. Kd2 {[%emt 0:07:34]} Rad8 {[%emt 0:01:48]} 32. g5 {[%emt 0:02:34]} hxg5 {[%emt 0:19:01]} 33. Rxg5 {[%emt 0:04:10]} Rxc4 {[%emt 0:00:13]} 34. h6 {[%emt 0:05:05]} Rc2+ {[%emt 0:00:05]} 35. Kd1 {[%emt 0:00:20]} Rc7 {[%emt 0:07:35]} 36. Rfg3 {[%emt 0:00:40]} Rdd7 {[%emt 0:00:10]} 37. Rxg7+ {[%emt 0:00:26]} Rxg7 {[%emt 0:00:04]} 38. hxg7 {[%emt 0:00:13]} Rxg7 {[%emt 0:06:19]} 39. Rxd3 {[%emt 0:00:14]} Kf7 {[%emt 0:00:02]} 40. Rf3+ {[%emt 0:00:00]} Ke7 {[%emt 0:00:00]} 41. Rf2 {[%emt 0:03:28]} e5 {[%emt 0:01:02]} 42. Ke2 {[%emt 0:00:11]} Ke6 {[%emt 0:00:09]} 43. Ke3 {[%emt 0:00:33]} Rg3+ {[%emt 0:03:05]} 44. Ke4 {[%emt 0:00:10]} Rg4+ {[%emt 0:01:10]} 45. Ke3 {[%emt 0:00:01]} Ra4 {[%emt 0:02:38]} 46. b3 {[%emt 0:02:15]} Rh4 {[%emt 0:02:55]} 47. Rg2 {[%emt 0:00:16]} Kd5 {[%emt 0:01:54]} 48. Rd2+ {[%emt 0:00:54]} Rd4 {[%emt 0:05:04]} 49. Rc2 {[%emt 0:00:48]} a5 {[%emt 0:05:48]} 50. Rc7 {[%emt 0:00:28]} b6 {[%emt 0:05:58]} 51. Rd7+ {[%emt 0:02:13]} Kc5 {[%emt 0:00:07]} 52. Re7 {[%emt 0:00:08]} Rd5 {[%emt 0:00:39]} 53. Ke4 {[%emt 0:02:15]} Rd2 {[%emt 0:01:10]} 54. a3 {[%emt 0:04:28]} Rd4+ {[%emt 0:00:21]} 55. Ke3 {[%emt 0:01:03]} Kd6 {[%emt 0:04:37]} 56. Rb7 {[%emt 0:00:28]} Kc6 {[%emt 0:01:37]} 57. Re7 {[%emt 0:00:10]} Rd5 {[%emt 0:00:13]} 58. Re6+ {[%emt 0:00:51]} Kb7 {[%emt 0:09:02]} 59. a4 {[%emt 0:00:40]} Kc7 {[%emt 0:00:04]} 60. Ke4 {[%emt 0:00:24]} Rd4+ {[%emt 0:00:09]} 61. Kxe5 {[%emt 0:00:11]} Rd3 {[%emt 0:01:14]} 62. Ke4 {[%emt 0:01:09]} Rxb3 {[%emt 0:00:41]} 63. Kd5 {[%emt 0:00:25]} Rb4 {[%emt 0:00:22]} 64. Re7+ {[%emt 0:00:31]} Kd8 {[%emt 0:00:05]} 65. Re4 {[%emt 0:00:14]} Rxe4 {[%emt 0:01:12]} 66. Kxe4 {[%emt 0:00:21]} Kc7 {[%emt 0:00:10]} 67. Kd5 {[%emt 0:00:16]} Kd7 {[%emt 0:00:04]} 68. Kc4 {[%emt 0:00:10]} Kc6 {[%emt 0:00:05]} 69. Kd4 {[%emt 0:00:05]} b5 {[%emt 0:00:08]} 70. axb5+ {[%emt 0:00:05]} Kxb5 {[%emt 0:00:03]} 71. Kc3 {[%emt 0:00:13]} a4 {[%emt 0:00:06]} 72. Kb2 {[%emt 0:00:05]} Kb4 {[%emt 0:00:04]} 73. Ka2 {[%emt 0:00:07]} a3 {[%emt 0:00:03]} 74. Ka1 {[%emt 0:00:07]} Kb3 {[%emt 0:00:03]} 75. Kb1 {[%emt 0:00:08]} a2+ {[%emt 0:00:02]} 76. Ka1 {[%emt 0:00:07]} Ka3 {[%emt 0:00:01]} 1/2-1/2

[Event "7th Capablanca Memorial GM 2019"]
[Site "Anogia"]
[Date "2019.09.17"]
[Round "7.3"]
[White "Dushyant Sharma"]
[Black "Patrelakis, Evaggelos"]
[Result "1-0"]
[ECO "B82"]
[WhiteElo "2242"]
[BlackElo "2202"]
[Annotator "ChessBase"]
[PlyCount "128"]
[EventDate "2019.09.11"]
[EventType "tourn"]
[EventCountry "GRE"]
[SourceTitle "playchess.com"]
[Source "ChessBase"]
[SourceQuality "1"]
[TimeControl "40/5400+30:1800+30"]

1. e4 {[%emt 0:00:00]} c5 {[%emt 0:00:00]} 2. Nf3 {[%emt 0:00:00]} d6 {[%emt 0:00:07]} 3. d4 {[%emt 0:00:00]} cxd4 {[%emt 0:00:06]} 4. Nxd4 {[%emt 0:00:00]} Nf6 {[%emt 0:00:11]} 5. Nc3 {[%emt 0:00:09]} e6 {[%emt 0:00:08]} 6. f4 {[%emt 0:00:58]} a6 {[%emt 0:00:29]} 7. Nf3 {[%emt 0:00:17]} Qc7 {[%emt 0:00:37]} 8. Bd3 {[%emt 0:00:22]} b5 {[%emt 0:01:10]} 9. a3 {[%emt 0:03:39]} Bb7 {[%emt 0:00:21]} 10. O-O {[%emt 0:00:25]} Be7 {[%emt 0:01:12]} 11. Qe1 {[%emt 0:00:19]} Nc6 {[%emt 0:27:52]} 12. Kh1 {[%emt 0:03:30]} b4 {[%emt 0:05:08]} 13. Ne2 {[%emt 0:05:00]} bxa3 {[%emt 0:02:44]} 14. bxa3 {[%emt 0:01:47]} O-O {[%emt 0:01:45]} 15. Ng3 {[%emt 0:05:12]} Nd7 {[%emt 0:03:55]} 16. Bb2 {[%emt 0:05:53]} e5 {[%emt 0:14:46]} 17. Nf5 {[%emt 0:04:44]} Bf6 {[%emt 0:00:25]} 18. Ne3 {[%emt 0:01:19]} exf4 {[%emt 0:12:43]} 19. Nd5 {[%emt 0:03:04]} Qd8 {[%emt 0:00:02]} 20. Nxf6+ {[%emt 0:04:17]} Nxf6 {[%emt 0:00:01]} 21. Rb1 {[%emt 0:00:44]} Bc8 {[%emt 0:01:53]} 22. e5 {[%emt 0:08:39]} dxe5 {[%emt 0:03:28]} 23. Nxe5 {[%emt 0:00:56]} Nxe5 {[%emt 0:01:46]} 24. Qxe5 {[%emt 0:00:52]} Qd5 {[%emt 0:03:29]} 25. Qxf4 {[%emt 0:10:52]} Bb7 {[%emt 0:00:47]} 26. Qg3 {[%emt 0:01:35]} Nh5 {[%emt 0:00:32]} 27. Qh3 {[%emt 0:01:22]} g6 {[%emt 0:00:44]} 28. Rf2 {[%emt 0:10:57]} Bc8 {[%emt 0:04:28]} 29. Qh4 {[%emt 0:01:41]} Be6 {[%emt 0:01:50]} 30. Rbf1 {[%emt 0:01:13]} Rab8 {[%emt 0:00:37]} 31. Bd4 {[%emt 0:02:03]} Rfd8 {[%emt 0:01:18]} 32. c3 {[%emt 0:00:29]} a5 {[%emt 0:02:07]} 33. Be2 {[%emt 0:00:36]} h6 {[%emt 0:02:36]} 34. Bxh5 {[%emt 0:02:01]} Qxh5 {[%emt 0:00:09]} 35. Qf6 {[%emt 0:01:46]} Rxd4 {[%emt 0:00:08]} 36. cxd4 {[%emt 0:00:35]} Rc8 {[%emt 0:02:01]} 37. Re1 {[%emt 0:04:36]} Qd5 {[%emt 0:01:33]} 38. Rfe2 {[%emt 0:02:36]} Rc6 {[%emt 0:02:56]} 39. h3 {[%emt 0:00:53]} h5 {[%emt 0:00:31]} 40. Rd2 {[%emt 0:00:00]} Rc8 {[%emt 0:00:00]} 41. Qe5 {[%emt 0:04:26]} a4 {[%emt 0:06:04]} 42. Qg3 {[%emt 0:12:26]} Qa5 {[%emt 0:03:56]} 43. Rde2 {[%emt 0:01:05]} Rc3 {[%emt 0:04:35]} 44. Re3 {[%emt 0:02:30]} Rxe3 {[%emt 0:00:22]} 45. Rxe3 {[%emt 0:00:37]} Qd5 {[%emt 0:01:18]} 46. Qe5 {[%emt 0:00:26]} Qc4 {[%emt 0:01:21]} 47. Kh2 {[%emt 0:00:50]} Bd5 {[%emt 0:01:57]} 48. Qf6 {[%emt 0:02:22]} Be6 {[%emt 0:02:31]} 49. Re5 {[%emt 0:01:44]} Kh7 {[%emt 0:01:54]} 50. Qf4 {[%emt 0:00:57]} Qa2 {[%emt 0:01:03]} 51. Qf3 {[%emt 0:02:15]} Qb2 {[%emt 0:00:48]} 52. Qe3 {[%emt 0:04:37]} Qb8 {[%emt 0:01:19]} 53. Qg3 {[%emt 0:02:47]} Qa8 {[%emt 0:02:08]} 54. Rb5 {[%emt 0:01:25]} Qe4 {[%emt 0:03:11]} 55. Qe5 {[%emt 0:01:10]} Qxe5+ {[%emt 0:00:39]} 56. Rxe5 {[%emt 0:00:09]} Kg7 {[%emt 0:00:16]} 57. d5 {[%emt 0:00:09]} Bd7 {[%emt 0:01:02]} 58. d6 {[%emt 0:00:22]} Kf6 {[%emt 0:00:41]} 59. Re7 {[%emt 0:00:09]} Bc6 {[%emt 0:00:41]} 60. h4 {[%emt 0:00:13]} Bd5 {[%emt 0:00:21]} 61. Kg3 {[%emt 0:00:33]} Bc6 {[%emt 0:00:42]} 62. Kf2 {[%emt 0:00:09]} Bd5 {[%emt 0:00:08]} 63. g3 {[%emt 0:00:04]} Bc6 {[%emt 0:00:04]} 64. Ke3 {[%emt 0:00:04]} Bb5 {[%emt 0:00:12]} 1-0

[Event "7th Capablanca Memorial GM 2019"]
[Site "Anogia"]
[Date "2019.09.17"]
[Round "7.4"]
[White "David, Alberto"]
[Black "Audi Ameya"]
[Result "1-0"]
[ECO "A70"]
[WhiteElo "2533"]
[BlackElo "2329"]
[Annotator "RC"]
[PlyCount "89"]
[EventDate "2019.09.11"]
[EventType "tourn"]
[EventCountry "GRE"]
[SourceTitle "playchess.com"]
[Source "ChessBase"]
[SourceQuality "1"]
[TimeControl "40/5400+30:1800+30"]

1. d4 {[%emt 0:00:00]} Nf6 {[%emt 0:00:00]} 2. c4 {[%emt 0:00:00]} c5 {[%emt 0:01:43]} 3. d5 {[%emt 0:02:04]} e6 {[%emt 0:00:07]} 4. Nc3 {[%emt 0:00:50]} exd5 {[%emt 0:00:17]} 5. cxd5 {[%emt 0:00:07]} d6 {[%emt 0:00:03]} 6. Nf3 {[%emt 0:07:11]} g6 {[%emt 0:00:13]} 7. Bf4 {[%emt 0:00:10]} Bg7 {[%emt 0:01:26]} 8. Qa4+ {[%emt 0:02:11]} Bd7 {[%emt 0:09:32]} 9. Qb3 {[%emt 0:00:20]} Qc7 {[%emt 0:00:39]} 10. e4 {[%emt 0:03:40]} O-O {[%emt 0:01:14]} 11. Nd2 {[%emt 0:03:33]} Re8 {[%emt 0:19:47]} 12. Be2 {[%emt 0:00:57]} b5 {[%emt 0:18:23]} 13. Bxb5 {[%emt 0:18:02]} Nh5 {[%emt 0:00:09]} 14. Be3 {[%emt 0:00:06]} f5 {[%emt 0:00:28]} 15. g3 {[%emt 0:04:47]} fxe4 {[%emt 0:00:16]} 16. Be2 {[%emt 0:23:17]} a5 {[%emt 0:07:47]} 17. a4 {[%emt 0:06:50]} Na6 {[%emt 0:01:00]} 18. Ndxe4 {[%emt 0:00:58]} Rab8 {[%emt 0:11:30]} 19. Qd1 {[%emt 0:03:30]} Nb4 {[%emt 0:00:18]} 20. O-O {[%emt 0:01:07]} Bh3 {[%emt 0:06:39]} 21. Re1 {[%emt 0:03:38]} Bf5 {[%emt 0:00:02]} 22. Bxh5 {[%emt 0:03:32]} gxh5 {[%emt 0:02:20]} 23. f3 {[%emt 0:00:52]} c4 {[%emt 0:04:12]} 24. Nb5 {[%emt 0:01:45]} Qd7 {[%emt 0:03:31]} 25. Nexd6 {[%emt 0:04:28]} Rxb5 {[%emt 0:00:14]} 26. Nxb5 {[%emt 0:03:40]} Nc2 {[%emt 0:00:02]} 27. Qd2 {[%emt 0:00:38]} Bxb2 {[%emt 0:02:03]} 28. Rad1 {[%emt 0:00:41]} Bd3 {[%emt 0:01:43]} 29. Bc5 {[%emt 0:02:49]} Rxe1+ {[%emt 0:05:19]} 30. Rxe1 {[%emt 0:00:03]} Nxe1 {[%emt 0:00:03]} 31. Qxe1 {[%emt 0:00:12]} Bf6 {[%emt 0:00:46]} 32. Bd4 {[%emt 0:00:47]} Bxd4+ {[%emt 0:02:00]} 33. Nxd4 {[%emt 0:00:03]} Qxd5 {[%emt 0:00:01]} 34. Qe8+ {[%emt 0:00:39]} Kg7 {[%emt 0:00:01]} 35. Qe7+ {[%emt 0:00:51]} Kg6 {[%emt 0:00:02]} 36. Ne6 {[%emt 0:01:01]} Kf5 {[%emt 0:03:13]} 37. Ng7+ {[%emt 0:01:11]} Kg6 {[%emt 0:00:04]} 38. Ne6 {[%emt 0:00:03]} Kf5 {[%emt 0:00:05]} 39. h4 {[%emt 0:01:47]} c3 {[%emt 0:01:33]} 40. Ng7+ {[%emt 0:00:00]} Kg6 {[%emt 0:00:00]} 41. Ne6 {[%emt 0:01:32]} Kf5 {[%emt 0:00:59]} 42. Nf4 {[%emt 0:03:04]} Qg8 {[%emt 0:10:10]} 43. Qd7+ {[%emt 0:02:36]} Kf6 {[%emt 0:00:18]} 44. Qd6+ {[%emt 0:02:42]} Kf7 {[%emt 0:00:55]} 45. Qe6+ {[%emt 0:00:08]} 1-0

[Event "7th Capablanca Memorial GM 2019"]
[Site "Anogia"]
[Date "2019.09.17"]
[Round "7.5"]
[White "Osmak, Iulija"]
[Black "Mirzoev, Emil"]
[Result "1/2-1/2"]
[ECO "D94"]
[WhiteElo "2408"]
[BlackElo "2477"]
[Annotator "ChessBase"]
[PlyCount "29"]
[EventDate "2019.09.11"]
[EventType "tourn"]
[EventCountry "GRE"]
[SourceTitle "playchess.com"]
[Source "ChessBase"]
[SourceQuality "1"]
[TimeControl "40/5400+30:1800+30"]

1. Nf3 {[%emt 0:06:49]} Nf6 {[%emt 0:00:00]} 2. c4 {[%emt 0:00:11]} g6 {[%emt 0:00:00]} 3. Nc3 {[%emt 0:00:08]} Bg7 {[%emt 0:00:28]} 4. d4 {[%emt 0:00:05]} d5 {[%emt 0:00:03]} 5. e3 {[%emt 0:01:40]} O-O {[%emt 0:00:06]} 6. Be2 {[%emt 0:00:03]} c5 {[%emt 0:00:38]} 7. dxc5 {[%emt 0:00:23]} dxc4 {[%emt 0:00:10]} 8. Qxd8 {[%emt 0:00:05]} Rxd8 {[%emt 0:00:04]} 9. Bxc4 {[%emt 0:00:04]} Nbd7 {[%emt 0:00:37]} 10. c6 {[%emt 0:00:19]} bxc6 {[%emt 0:00:04]} 11. Bd2 {[%emt 0:00:38]} Nb6 {[%emt 0:00:04]} 12. Be2 {[%emt 0:01:09]} Nfd5 {[%emt 0:00:40]} 13. Rc1 {[%emt 0:00:26]} Nb4 {[%emt 0:00:28]} 14. O-O {[%emt 0:00:39]} Nd3 {[%emt 0:00:30]} 15. Bxd3 {[%emt 0:01:52]} 1/2-1/2

[Event "7th Capablanca Memorial GM 2019"]
[Site "Anogia"]
[Date "2019.09.18"]
[Round "8.1"]
[White "Moiseenko, Vadim"]
[Black "Mirzoev, Emil"]
[Result "1/2-1/2"]
[ECO "D80"]
[WhiteElo "2543"]
[BlackElo "2477"]
[Annotator "ChessBase"]
[PlyCount "32"]
[EventDate "2019.09.11"]
[EventType "tourn"]
[EventCountry "GRE"]
[SourceTitle "playchess.com"]
[Source "ChessBase"]
[SourceQuality "1"]
[TimeControl "40/5400+30:1800+30"]

1. d4 {[%emt 0:02:27]} Nf6 {[%emt 0:04:27]} 2. c4 {[%emt 0:00:04]} g6 {[%emt 0:00:07]} 3. Nc3 {[%emt 0:00:07]} d5 {[%emt 0:00:02]} 4. Qa4+ {[%emt 0:00:26]} Nc6 {[%emt 0:00:53]} 5. Nf3 {[%emt 0:01:23]} Bg7 {[%emt 0:00:14]} 6. Bf4 {[%emt 0:00:29]} O-O {[%emt 0:00:32]} 7. e3 {[%emt 0:00:04]} Bg4 {[%emt 0:00:18]} 8. Ne5 {[%emt 0:00:18]} Bd7 {[%emt 0:00:42]} 9. Nxd7 {[%emt 0:00:16]} Qxd7 {[%emt 0:00:03]} 10. cxd5 {[%emt 0:00:36]} Nxd5 {[%emt 0:00:01]} 11. Nxd5 {[%emt 0:00:05]} Qxd5 {[%emt 0:00:03]} 12. Qb5 {[%emt 0:00:14]} Qxb5 {[%emt 0:00:12]} 13. Bxb5 {[%emt 0:00:11]} e5 {[%emt 0:00:03]} 14. dxe5 {[%emt 0:00:16]} Bxe5 {[%emt 0:00:25]} 15. Bxe5 {[%emt 0:00:31]} Nxe5 {[%emt 0:00:12]} 16. Ke2 {[%emt 0:00:02]} c6 {[%emt 0:00:14]} 1/2-1/2

[Event "7th Capablanca Memorial GM 2019"]
[Site "Anogia"]
[Date "2019.09.18"]
[Round "8.2"]
[White "Audi Ameya"]
[Black "Osmak, Iulija"]
[Result "1/2-1/2"]
[ECO "C18"]
[WhiteElo "2329"]
[BlackElo "2408"]
[Annotator "NA"]
[PlyCount "130"]
[EventDate "2019.09.11"]
[EventType "tourn"]
[EventCountry "GRE"]
[SourceTitle "playchess.com"]
[Source "ChessBase"]
[SourceQuality "1"]
[TimeControl "40/5400+30:1800+30"]

1. e4 {[%emt 0:00:00]} e6 {[%emt 0:02:40]} 2. d4 {[%emt 0:00:00]} d5 {[%emt 0:00:11]} 3. Nc3 {[%emt 0:00:00]} Bb4 {[%emt 0:00:09]} 4. e5 {[%emt 0:00:00]} Ne7 {[%emt 0:00:10]} 5. a3 {[%emt 0:00:06]} Bxc3+ {[%emt 0:00:05]} 6. bxc3 {[%emt 0:00:04]} c5 {[%emt 0:00:09]} 7. Qg4 {[%emt 0:00:04]} Kf8 {[%emt 0:00:09]} 8. a4 {[%emt 0:00:36]} Qc7 {[%emt 0:01:40]} 9. Qd1 {[%emt 0:00:14]} b6 {[%emt 0:04:07]} 10. Nf3 {[%emt 0:00:08]} h6 {[%emt 0:01:51]} 11. h4 {[%emt 0:00:35]} Ba6 {[%emt 0:05:55]} 12. Bb5 {[%emt 0:01:17]} cxd4 {[%emt 0:07:54]} 13. cxd4 {[%emt 0:00:10]} Bxb5 {[%emt 0:00:22]} 14. axb5 {[%emt 0:00:03]} Qc4 {[%emt 0:00:37]} 15. Qd3 {[%emt 0:01:11]} Qxd3 {[%emt 0:02:22]} 16. cxd3 {[%emt 0:00:03]} a5 {[%emt 0:05:06]} 17. Ba3 {[%emt 0:00:04]} Ke8 {[%emt 0:06:07]} 18. Kd2 {[%emt 0:01:01]} Kd7 {[%emt 0:04:22]} 19. Rhc1 {[%emt 0:08:02]} Ra7 {[%emt 0:02:29]} 20. Rc3 {[%emt 0:09:32]} Rc8 {[%emt 0:03:45]} 21. Rxc8 {[%emt 0:13:20]} Kxc8 {[%emt 0:04:54]} 22. Bd6 {[%emt 0:07:54]} Rb7 {[%emt 0:00:59]} 23. g4 {[%emt 0:06:39]} Kd8 {[%emt 0:02:30]} 24. h5 {[%emt 0:01:10]} Nd7 {[%emt 0:07:13]} 25. Rg1 {[%emt 0:03:27]} f6 {[%emt 0:11:35]} 26. exf6 {[%emt 0:14:17]} Nxf6 {[%emt 0:02:57]} 27. Be5 {[%emt 0:07:02]} Ne8 {[%emt 0:12:46]} 28. Ne1 {[%emt 0:07:50]} Nc8 {[%emt 0:01:39]} 29. Nc2 {[%emt 0:00:02]} Ncd6 {[%emt 0:01:05]} 30. Na3 {[%emt 0:00:15]} Ke7 {[%emt 0:02:21]} 31. f4 {[%emt 0:00:46]} Nf6 {[%emt 0:01:15]} 32. Rh1 {[%emt 0:06:24]} Nxg4 {[%emt 0:01:10]} 33. Bxg7 {[%emt 0:00:23]} Nf5 {[%emt 0:00:56]} 34. Be5 {[%emt 0:00:29]} Nxe5 {[%emt 0:00:59]} 35. dxe5 {[%emt 0:00:11]} Kd8 {[%emt 0:03:37]} 36. Rc1 {[%emt 0:03:59]} Rc7 {[%emt 0:00:04]} 37. Nc2 {[%emt 0:00:04]} Rc5 {[%emt 0:00:50]} 38. Rg1 {[%emt 0:02:07]} Rxb5 {[%emt 0:00:44]} 39. Rg6 {[%emt 0:00:02]} Ke7 {[%emt 0:01:06]} 40. Ne3 {[%emt 0:00:00]} Nxe3 {[%emt 0:00:00]} 41. Kxe3 {[%emt 0:00:22]} a4 {[%emt 0:05:02]} 42. Rxh6 {[%emt 0:14:27]} a3 {[%emt 0:02:47]} 43. Rh7+ {[%emt 0:00:23]} Kf8 {[%emt 0:02:17]} 44. h6 {[%emt 0:00:09]} Ra5 {[%emt 0:04:47]} 45. Rc7 {[%emt 0:01:41]} Kg8 {[%emt 0:00:33]} 46. Rc1 {[%emt 0:00:11]} Kh7 {[%emt 0:08:36]} 47. f5 {[%emt 0:06:28]} a2 {[%emt 0:01:17]} 48. Ra1 {[%emt 0:00:13]} Kxh6 {[%emt 0:00:46]} 49. f6 {[%emt 0:05:48]} Kg6 {[%emt 0:00:14]} 50. d4 {[%emt 0:00:15]} Ra4 {[%emt 0:06:15]} 51. Kd3 {[%emt 0:00:15]} Kf7 {[%emt 0:00:42]} 52. Kc3 {[%emt 0:00:10]} b5 {[%emt 0:00:30]} 53. Kb3 {[%emt 0:01:47]} Rxd4 {[%emt 0:00:13]} 54. Rxa2 {[%emt 0:00:02]} Rf4 {[%emt 0:01:41]} 55. Rg2 {[%emt 0:05:32]} Rf5 {[%emt 0:00:40]} 56. Re2 {[%emt 0:00:06]} Rf4 {[%emt 0:01:05]} 57. Rg2 {[%emt 0:00:10]} Re4 {[%emt 0:00:38]} 58. Rg5 {[%emt 0:00:16]} b4 {[%emt 0:00:52]} 59. Ka4 {[%emt 0:00:20]} Kf8 {[%emt 0:00:45]} 60. Kb3 {[%emt 0:00:32]} Kf7 {[%emt 0:00:40]} 61. Rg7+ {[%emt 0:01:03]} Kf8 {[%emt 0:00:07]} 62. Rg5 {[%emt 0:00:10]} Rf4 {[%emt 0:00:24]} 63. Ka4 {[%emt 0:01:12]} Re4 {[%emt 0:01:13]} 64. Kb3 {[%emt 0:00:05]} Rf4 {[%emt 0:00:30]} 65. Ka4 {[%emt 0:00:12]} Re4 {[%emt 0:00:28]} 1/2-1/2

[Event "7th Capablanca Memorial GM 2019"]
[Site "Anogia"]
[Date "2019.09.18"]
[Round "8.3"]
[White "Patrelakis, Evaggelos"]
[Black "David, Alberto"]
[Result "1/2-1/2"]
[ECO "B41"]
[WhiteElo "2202"]
[BlackElo "2533"]
[Annotator "ChessBase"]
[PlyCount "30"]
[EventDate "2019.09.11"]
[EventType "tourn"]
[EventCountry "GRE"]
[SourceTitle "playchess.com"]
[Source "ChessBase"]
[SourceQuality "1"]
[TimeControl "40/5400+30:1800+30"]

1. e4 {[%emt 0:00:00]} c5 {[%emt 0:01:10]} 2. Nf3 {[%emt 0:00:00]} a6 {[%emt 0:00:31]} 3. c4 {[%emt 0:00:20]} e6 {[%emt 0:01:14]} 4. Nc3 {[%emt 0:01:12]} Qc7 {[%emt 0:00:20]} 5. d4 {[%emt 0:01:53]} cxd4 {[%emt 0:00:05]} 6. Nxd4 {[%emt 0:00:07]} Nf6 {[%emt 0:00:18]} 7. a3 {[%emt 0:00:26]} b6 {[%emt 0:03:04]} 8. Be3 {[%emt 0:01:17]} Bb7 {[%emt 0:02:47]} 9. f3 {[%emt 0:00:10]} d6 {[%emt 0:00:08]} 10. Be2 {[%emt 0:00:10]} Be7 {[%emt 0:00:23]} 11. O-O {[%emt 0:00:10]} O-O {[%emt 0:00:17]} 12. Qd2 {[%emt 0:01:21]} Nbd7 {[%emt 0:00:29]} 13. Rfc1 {[%emt 0:03:02]} Rfc8 {[%emt 0:05:15]} 14. b4 {[%emt 0:04:19]} Qd8 {[%emt 0:01:28]} 15. Nb3 {[%emt 0:02:20]} h6 {[%emt 0:19:44]} 1/2-1/2